bitfinex/quotes_SOLUSD_20250728
["timestamp","ask_amount","ask_price","bid_price","bid_amount"]
[1753677898191,4.85535067,193.26,193.2,5.82967381]
[1753677898391,4.85535067,193.26,193.21,0.72]
[1753677898591,4.85535067,193.26,193.22,0.72]
[1753677898814,0.03,193.26,193.22,0.72]
[1753677899111,7.72004164,193.25,193.22,0.72]
[1753677899508,0.03,193.26,193.21,12.89566466]
[1753677899814,0.03,193.26,193.23,0.72]
[1753677900308,0.03,193.26,193.22,7.72004164]
[1753677900516,0.03,193.26,193.24,0.72]
[1753677900891,0.03,193.26,193.22,7.72004164]
[1753677900892,0.03,193.26,193.25,0.72]
[1753677901549,0.03,193.26,193.25,8.44004164]
[1753677901810,0.03,193.26,193.25,0.72]
[1753677902403,0.03,193.26,193.25,5.89464424]
[1753677902596,0.03,193.26,193.25,13.89900902]
[1753677902808,0.03,193.26,193.25,30.68369299]
[1753677904421,0.03,193.26,193.25,31.20115741]
[1753677906838,0.03,193.26,193.25,32.76025741]
[1753677907048,0.03,193.27,193.26,17.06900711]
[1753677907336,0.03,193.3,193.26,17.06900711]
[1753677907337,0.03,193.3,193.29,43.06900711]
[1753677907545,0.03,193.3,193.29,89.54640608]
[1753677907722,0.03,193.3,193.29,90.26640608]
[1753677908822,0.03,193.3,193.29,95.43997946]
[1753677913040,0.03,193.3,193.29,57.19997946]
[1753677913254,0.03,193.3,193.29,183.61997946]
[1753677913564,0.03,193.3,193.29,183.10262213]
[1753677913764,0.03,193.3,193.29,136.40041892]
[1753677913963,0.03,193.3,193.29,156.24046056]
[1753677914170,0.03,193.3,193.29,156.96046056]
[1753677914664,0.03,193.3,193.29,157.10262213]
[1753677918849,0.03,193.3,193.29,154.20112591]
[1753677919670,0.03,193.31,193.3,17.06900711]
[1753677919868,0.03,193.31,193.3,27.94342852]
[1753677920087,0.03,193.31,193.3,27.22342852]
[1753677920416,0.03,193.31,193.3,27.94342852]
[1753677920595,0.03,193.31,193.3,28.29818884]
[1753677921699,0.03,193.31,193.3,32.36819829]
[1753677921871,0.03,193.33,193.32,5.10286856]
[1753677922048,0.03,193.33,193.32,43.68014561]
[1753677922252,0.03,193.33,193.32,44.40014561]
[1753677923075,0.03,193.33,193.32,49.57291614]
[1753677924109,0.03,193.34,193.33,17.06900711]
[1753677924253,0.03,193.35,193.34,21.88755253]
[1753677924452,0.03,193.35,193.34,61.14477607]
[1753677925098,0.03,193.35,193.34,66.31701151]
[1753677927980,0.67,193.43,193.36,131.33900711]
[1753677928164,0.67,193.43,193.36,174.11755253]
[1753677928363,0.1,193.46,193.36,148.80755253]
[1753677928681,0.67,193.43,193.36,148.80755253]
[1753677929908,0.67,193.43,193.36,153.97925298]
[1753677930199,0.67,193.41,193.36,153.28925298]
[1753677930365,0.67,193.41,193.36,115.32925298]
[1753677930567,0.67,193.39,193.36,153.22925298]
[1753677931204,0.7,193.37,193.36,88.27]
[1753677931372,0.7,193.37,193.36,63.88]
[1753677932976,0.03,193.37,193.36,68.69854542]
[1753677933178,0.03,193.37,193.36,73.87024587]
[1753677933395,0.03,193.37,193.36,69.05170045]
[1753677934179,0.03,193.37,193.36,63.86]
[1753677934180,0.7,193.37,193.36,63.86]
[1753677934386,0.7,193.37,193.34,93.08854542]
[1753677934587,4.81854542,193.35,193.28,5.17384105]
[1753677934774,1.5806,193.36,193.27,0.06]
[1753677934775,11.08434542,193.33,193.27,0.06]
[1753677934972,4.81854542,193.3,193.27,0.06]
[1753677935483,0.67,193.29,193.27,0.06]
[1753677935895,0.67,193.28,193.27,0.06]
[1753677938312,4.81854542,193.32,193.27,0.06]
[1753677938500,0.67,193.3,193.27,0.06]
[1753677939012,0.67,193.29,193.27,0.06]
[1753677939578,0.67,193.28,193.27,0.06]
[1753677939886,5.48854542,193.28,193.27,0.06]
[1753677940113,7.10074542,193.28,193.27,0.06]
[1753677941180,12.27458647,193.28,193.27,0.06]
[1753677941707,18.68208647,193.28,193.23,0.06]
[1753677942001,4.81854542,193.24,193.23,0.06]
[1753677942204,0.67,193.27,193.23,0.06]
[1753677942372,4.81854542,193.24,193.23,0.06]
[1753677942809,0.67,193.24,193.23,0.06]
[1753677943005,5.48854542,193.24,193.23,0.06]
[1753677943208,0.67,193.24,193.23,0.06]
[1753677943408,5.48854542,193.24,193.23,0.06]
[1753677943617,0.67,193.24,193.23,0.06]
[1753677943984,5.48854542,193.24,193.23,0.06]
[1753677944493,10.66345744,193.24,193.23,0.06]
[1753677944885,5.48854542,193.24,193.23,0.06]
[1753677945328,10.66345744,193.24,193.23,0.06]
[1753677947126,5.48854542,193.24,193.23,0.06]
[1753677947432,8.0197,193.28,193.23,0.06]
[1753677947433,5.84442156,193.26,193.23,0.06]
[1753677947595,4.81854542,193.24,193.23,0.06]
[1753677948002,5.48854542,193.24,193.23,0.06]
[1753677950122,0.67,193.24,193.23,0.06]
[1753677950436,5.48854542,193.24,193.23,0.06]
[1753677951244,4.81854542,193.24,193.23,0.06]
[1753677951446,12.83824542,193.28,193.23,89.02]
[1753677951728,11.22604542,193.28,193.24,0.69]
[1753677951939,4.81854542,193.27,193.23,88.33]
[1753677952322,4.84854542,193.27,193.23,89.02]
[1753677952525,4.81854542,193.24,193.23,88.33]
[1753677952715,5.48854542,193.24,193.23,0.06]
[1753677954175,4.81854542,193.24,193.23,0.06]
[1753677955116,9.99345744,193.24,193.23,0.06]
[1753677956416,4.81854542,193.24,193.23,0.06]
[1753677959432,10.67345744,193.24,193.23,0.06]
[1753677960038,4.81854542,193.24,193.23,0.06]
[1753677961541,10.67345744,193.24,193.23,0.06]
[1753677962011,4.81854542,193.24,193.23,0.06]
[1753677963445,5.17491202,193.24,193.23,0.06]
[1753677963615,9.99345744,193.24,193.23,0.06]
[1753677963811,12.32725744,193.24,193.23,0.06]
[1753677964120,18.57925744,193.24,193.23,0.06]
[1753677966619,17.89925744,193.24,193.23,0.06]
[1753677967855,6.47234542,193.24,193.23,0.06]
[1753677968148,4.81854542,193.25,193.23,0.76]
[1753677968316,5.49854542,193.24,193.23,0.06]
[1753677969938,10.67345744,193.24,193.23,0.06]
[1753677970432,18.22575744,193.24,193.23,0.06]
[1753677970635,35.98158292,193.24,193.19,0.06]
[1753677970938,4.81854542,193.2,193.19,0.06]
[1753677971941,9.99452885,193.2,193.19,0.06]
[1753677974158,14.81307427,193.2,193.19,0.06]
[1753677975149,15.49307427,193.2,193.19,0.06]
[1753677975848,14.81307427,193.2,193.19,0.06]
[1753677978142,9.99452885,193.2,193.19,0.06]
[1753677980952,37.36,193.21,193.19,0.76]
[1753677981157,11.75033429,193.24,193.19,0.76]
[1753677981347,4.81854542,193.24,193.19,0.76]
[1753677982056,4.81854542,193.23,193.19,0.76]
[1753677982238,4.81854542,193.22,193.2,0.7]
[1753677982563,42.15854542,193.21,193.19,0.06]
[1753677982856,14.81307427,193.2,193.19,0.06]
[1753677983052,15.49307427,193.2,193.19,0.06]
[1753677983438,10.67452885,193.2,193.19,0.06]
[1753677983837,15.49307427,193.2,193.19,0.06]
[1753677984241,19.34563871,193.2,193.19,0.06]
[1753677986272,15.49307427,193.2,193.19,0.06]
[1753677986665,19.34572765,193.2,193.19,0.06]
[1753677987249,18.66572765,193.2,193.19,0.06]
[1753677987556,16.78468397,193.19,193.17,0.06]
[1753677987754,72.0111988,193.18,193.16,0.06]
[1753677988056,14.37833309,193.17,193.15,0.06]
[1753677988253,4.81854542,193.16,193.15,0.06]
[1753677988471,9.37838149,193.16,193.11,0.06]
[1753677988658,4.81854542,193.14,193.11,0.06]
[1753677989060,5.52854542,193.14,193.11,0.06]
[1753677989242,10.7061368,193.14,193.11,0.06]
[1753677989442,17.1543368,193.14,193.11,0.06]
[1753677993660,43.1543368,193.14,193.11,0.06]
[1753677993863,59.93902077,193.14,193.11,0.06]
[1753677994067,42.17854542,193.13,193.11,0.06]
[1753677994275,42.88854542,193.13,193.11,0.06]
[1753677994847,42.17854542,193.13,193.11,0.06]
[1753677995568,47.35640489,193.13,193.11,0.06]
[1753678004075,4.81854542,193.13,193.12,0.73]
[1753678004478,42.17854542,193.13,193.12,0.73]
[1753678004772,4.81854542,193.14,193.12,0.73]
[1753678004975,0.03,193.15,193.12,0.73]
[1753678005853,0.03,193.15,193.12,5.90804705]
[1753678006054,0.03,193.15,193.12,10.72659247]
[1753678006267,0.03,193.15,193.13,5.48854542]
[1753678006660,0.03,193.15,193.14,0.67]
[1753678007479,0.03,193.15,193.14,5.84759138]
[1753678008471,0.03,193.15,193.14,0.67]
[1753678008789,4.84854542,193.15,193.12,0.73]
[1753678009082,4.84854542,193.15,193.12,0.06]
[1753678009083,9.99640489,193.13,193.12,0.06]
[1753678010055,4.81854542,193.13,193.12,0.73]
[1753678011764,9.99640489,193.13,193.12,0.73]
[1753678012266,9.99640489,193.13,193.12,0.06]
[1753678019290,9.99640489,193.13,193.12,0.06]
[1753678019690,10.65640489,193.13,193.12,0.06]
[1753678022368,15.47495031,193.13,193.11,0.06]
[1753678022568,47.63709084,193.12,193.11,0.06]
[1753678023368,42.81854542,193.12,193.11,0.06]
[1753678024374,47.996673,193.12,193.11,0.06]
[1753678026587,47.336673,193.12,193.11,0.06]
[1753678027593,47.996673,193.12,193.11,0.06]
[1753678028097,47.336673,193.12,193.11,0.06]
[1753678029780,47.996673,193.12,193.11,0.06]
[1753678030779,47.336673,193.12,193.11,0.06]
[1753678031980,47.996673,193.12,193.11,0.06]
[1753678032183,26.0,193.1,193.09,0.06]
[1753678032502,73.61709084,193.1,193.09,0.06]
[1753678034000,78.79575474,193.1,193.09,0.06]
[1753678035786,78.13575474,193.1,193.09,0.06]
[1753678037890,31.1786639,193.1,193.09,0.06]
[1753678038104,73.31720932,193.1,193.09,0.76]
[1753678038294,47.31720932,193.1,193.09,0.76]
[1753678041316,0.03,193.13,193.09,0.76]
[1753678041516,4.84854542,193.13,193.09,5.93890603]
[1753678041699,0.03,193.13,193.09,5.23890603]
[1753678041894,0.03,193.13,193.1,0.7]
[1753678042623,4.81854542,193.12,193.1,0.7]
[1753678042921,4.81854542,193.11,193.1,0.7]
[1753678043411,37.35,193.13,193.1,0.7]
[1753678043412,4.81854542,193.12,193.1,0.7]
[1753678044817,37.35,193.13,193.1,0.7]
[1753678044818,42.16854542,193.13,193.1,0.7]
[1753678045014,0.03,193.13,193.1,0.7]
[1753678045202,0.03,193.13,193.12,6.70796856]
[1753678045399,0.03,193.15,193.14,4.81854542]
[1753678045613,0.03,193.17,193.14,4.81854542]
[1753678045793,0.03,193.17,193.15,4.81854542]
[1753678046115,0.03,193.17,193.15,0.7]
[1753678046410,0.03,193.17,193.16,0.7]
[1753678047625,0.03,193.17,193.16,5.87705529]
[1753678047828,0.03,193.17,193.16,10.97992385]
[1753678048030,0.03,193.17,193.16,0.7]
[1753678048226,0.03,193.17,193.16,5.51854542]
[1753678048523,0.03,193.17,193.16,10.69560071]
[1753678048700,0.03,193.17,193.16,5.51854542]
[1753678050629,0.03,193.17,193.16,0.7]
[1753678051401,0.03,193.17,193.16,5.51854542]
[1753678053530,0.03,193.17,193.13,0.7]
[1753678053734,4.84854542,193.17,193.14,0.7]
[1753678053910,4.84854542,193.17,193.12,90.5751]
[1753678054422,4.81854542,193.15,193.12,88.27]
[1753678054631,4.81854542,193.14,193.11,0.7]
[1753678055453,5.17744035,193.15,193.11,0.7]
[1753678055650,9.99620834,193.14,193.11,0.7]
[1753678055828,4.81854542,193.13,193.09,89.03]
[1753678056737,4.81854542,193.13,193.1,0.7]
[1753678057148,9.99620834,193.14,193.1,0.7]
[1753678058832,4.81854542,193.14,193.11,0.7]
[1753678059421,37.49,193.17,193.12,0.7]
[1753678059755,42.66679333,193.17,193.12,0.7]
[1753678059931,47.48533875,193.17,193.12,0.7]
[1753678060528,42.30854542,193.17,193.12,0.7]
[1753678062044,47.48536187,193.17,193.13,0.7]
[1753678062246,42.30854542,193.17,193.14,0.7]
[1753678062437,37.49,193.17,193.15,0.7]
[1753678062621,0.03,193.17,193.16,4.81854542]
[1753678062827,0.03,193.17,193.16,94.07286856]
[1753678063935,0.03,193.17,193.16,131.43286856]
[1753678064442,0.03,193.17,193.16,136.60992385]
[1753678064648,0.03,193.17,193.16,153.39460782]
[1753678064956,0.03,193.17,193.16,89.25432314]
[1753678065450,0.03,193.17,193.16,88.97]
[1753678065627,0.03,193.17,193.16,93.78854542]
[1753678066947,0.03,193.17,193.16,98.96560071]
[1753678068054,0.03,193.17,193.16,93.78854542]
[1753678068560,0.03,193.17,193.16,93.08854542]
[1753678068723,0.03,193.17,193.16,4.81854542]
[1753678069028,0.03,193.17,193.14,131.44754126]
[1753678069219,0.03,193.17,193.15,5.51854542]
[1753678069423,0.03,193.17,193.15,0.7]
[1753678069619,0.03,193.17,193.14,37.3]
[1753678069855,5.52854542,193.16,193.1,95.41684542]
[1753678070154,5.52854542,193.15,193.1,127.1983]
[1753678070455,4.81854542,193.16,193.11,0.7]
[1753678070747,5.55854542,193.17,193.11,5.51854542]
[1753678071140,5.55854542,193.17,193.11,10.69688724]
[1753678072141,10.73540028,193.17,193.11,10.69688724]
[1753678072944,10.73540028,193.17,193.11,5.51854542]
[1753678073853,0.03,193.17,193.12,5.51854542]
[1753678074047,0.03,193.17,193.13,5.51854542]
[1753678074423,0.03,193.17,193.13,4.81854542]
[1753678074655,0.03,193.17,193.14,0.7]
[1753678074833,0.03,193.17,193.15,4.81854542]
[1753678075023,0.03,193.17,193.16,4.81854542]
[1753678075226,0.03,193.17,193.16,0.71]
[1753678075556,0.03,193.17,193.16,5.52854542]
[1753678076355,0.03,193.17,193.16,10.70560071]
[1753678076737,0.03,193.17,193.16,0.71]
[1753678076942,0.03,193.17,193.14,37.56432314]
[1753678077342,0.03,193.17,193.14,38.27432314]
[1753678077652,0.03,193.17,193.14,43.09286856]
[1753678077853,0.03,193.17,193.14,43.16749431]
[1753678078025,0.03,193.17,193.15,5.52854542]
[1753678078228,0.03,193.17,193.16,4.81854542]
[1753678078453,0.03,193.17,193.16,5.52854542]
[1753678079534,0.03,193.17,193.16,0.71]
[1753678079736,0.03,193.17,193.16,5.52854542]
[1753678080046,0.03,193.17,193.16,47.98560071]
[1753678080653,0.03,193.17,193.16,43.16705529]
[1753678080854,0.03,193.17,193.16,47.98560071]
[1753678082759,0.03,193.17,193.16,65.57231334]
[1753678083149,0.03,193.17,193.16,153.87231334]
[1753678083349,0.03,193.17,193.16,153.35460782]
[1753678084359,1e-08,193.17,193.16,153.35460782]
[1753678084662,1e-08,193.17,193.16,154.98510782]
[1753678086867,1e-08,193.17,193.16,180.98510782]
[1753678087261,1e-08,193.17,193.16,154.98510782]
[1753678089156,1e-08,193.17,193.16,93.26070699]
[1753678089469,1e-08,193.17,193.16,88.3]
[1753678090569,1e-08,193.17,193.16,93.11854542]
[1753678093957,1e-08,193.17,193.16,98.29560071]
[1753678094763,1e-08,193.17,193.16,88.3]
[1753678095957,1e-08,193.17,193.15,130.39854542]
[1753678096456,0.69000001,193.17,193.15,88.3]
[1753678096787,0.69,193.16,193.14,37.28]
[1753678097274,1e-08,193.17,193.14,4.81854542]
[1753678099071,1e-08,193.17,193.13,135.57632558]
[1753678099252,1e-08,193.17,193.13,136.28632558]
[1753678099961,1e-08,193.17,193.13,131.46778016]
[1753678100157,1e-08,193.17,193.13,136.28632558]
[1753678101251,1e-08,193.17,193.14,0.71]
[1753678104379,1e-08,193.17,193.14,5.52854542]
[1753678105480,1e-08,193.17,193.14,5.51854542]
[1753678105978,1e-08,193.17,193.14,0.7]
[1753678106553,0.7,193.16,193.13,88.3]
[1753678106978,5.51854542,193.16,193.13,88.3]
[1753678107177,5.51854542,193.16,193.11,125.90432314]
[1753678107373,0.7,193.16,193.11,130.72286856]
[1753678107576,0.7,193.16,193.11,131.42286856]
[1753678108282,5.87712333,193.16,193.11,131.42286856]
[1753678109264,5.87712333,193.16,193.12,0.7]
[1753678109465,9.99539138,193.17,193.12,5.51854542]
[1753678109669,9.99539138,193.17,193.13,0.7]
[1753678109879,10.69539138,193.17,193.13,0.7]
[1753678111368,9.99539138,193.17,193.13,0.7]
[1753678111570,10.69539138,193.17,193.13,0.7]
[1753678111774,0.7,193.16,193.11,130.43854542]
[1753678111972,5.51854542,193.16,193.11,126.32]
[1753678113380,0.7,193.16,193.11,126.32]
[1753678113587,10.69579545,193.16,193.11,125.62]
[1753678113881,9.99579545,193.16,193.12,0.7]
[1753678114264,10.69579545,193.16,193.12,0.7]
[1753678114459,5.51854542,193.15,193.11,88.36]
[1753678114666,4.81854542,193.15,193.12,0.7]
[1753678115780,9.99602528,193.15,193.12,0.7]
[1753678116686,9.99602528,193.15,193.11,0.06]
[1753678116991,9.99602528,193.15,193.11,0.76]
[1753678117667,5.17747986,193.15,193.11,0.76]
[1753678119589,10.69602528,193.15,193.11,0.76]
[1753678119976,9.99602528,193.15,193.11,0.76]
[1753678120174,9.99602528,193.15,193.12,0.7]
[1753678121297,10.69602528,193.15,193.11,0.06]
[1753678121489,10.69602528,193.15,193.11,0.76]
[1753678122282,9.99602528,193.15,193.11,0.76]
[1753678122683,1e-08,193.17,193.12,5.51854542]
[1753678122884,1e-08,193.17,193.13,5.51854542]
[1753678123399,1e-08,193.17,193.13,4.81854542]
[1753678123600,1e-08,193.17,193.14,0.7]
[1753678124084,5.17686636,193.17,193.13,5.51854542]
[1753678124286,5.87686636,193.17,193.13,5.51854542]
[1753678124599,1e-08,193.17,193.14,5.51854542]
[1753678124796,1e-08,193.17,193.15,0.7]
[1753678125886,1e-08,193.17,193.13,37.96]
[1753678126081,1e-08,193.17,193.13,42.07854542]
[1753678126288,1e-08,193.17,193.14,0.7]
[1753678127806,5.51854543,193.17,193.11,131.11854542]
[1753678127999,4.81854542,193.16,193.12,0.7]
[1753678128185,4.81854542,193.16,193.11,130.41854542]
[1753678128386,4.81854542,193.16,193.13,0.7]
[1753678128580,9.99576344,193.16,193.13,0.7]
[1753678128987,5.17721802,193.16,193.13,0.7]
[1753678130581,1e-08,193.17,193.15,4.81854542]
[1753678130784,0.03,193.25,193.21,26.0]
[1753678130995,0.03,193.25,193.18,6.084]
[1753678130996,0.03,193.25,193.24,30.81854542]
[1753678131400,0.03,193.25,193.24,31.10286856]
[1753678131591,0.03,193.25,193.24,51.90688886]
[1753678132812,0.03,193.25,193.24,57.08180088]
[1753678134208,0.03,193.25,193.24,95.26180088]
[1753678136203,0.03,193.25,193.24,90.44325546]
[1753678136408,0.03,193.25,193.24,95.26180088]
[1753678136909,0.03,193.25,193.24,183.56180088]
[1753678140600,0.03,193.25,193.24,145.38180088]
[1753678140807,0.03,193.25,193.24,157.19854542]
[1753678141114,0.03,193.25,193.24,157.88854542]
[1753678141492,0.03,193.25,193.24,163.06345744]
[1753678142391,0.68,193.25,193.24,114.3]
[1753678142606,0.68,193.25,193.24,26.0]
[1753678143203,0.68,193.25,193.24,30.81854542]
[1753678143621,5.49854542,193.25,193.21,114.3]
[1753678143832,4.81854542,193.24,193.21,26.0]
[1753678144033,0.65,193.23,193.21,26.0]
[1753678144194,0.65,193.23,193.19,88.3]
[1753678144395,0.65,193.22,193.19,88.3]
[1753678144711,0.65,193.22,193.19,93.11854542]
[1753678146301,0.65,193.22,193.19,88.3]
[1753678147739,5.17491523,193.24,193.19,93.11854542]
[1753678148017,0.65,193.23,193.19,93.11854542]
[1753678148224,0.65,193.23,193.19,88.3]
[1753678148425,0.65,193.23,193.19,93.11854542]
[1753678148627,0.03,193.25,193.21,4.81854542]
[1753678148827,0.03,193.25,193.24,30.81854542]
[1753678149046,0.03,193.25,193.24,86.34504373]
[1753678149521,0.03,193.25,193.24,88.61474373]
[1753678150314,0.03,193.25,193.24,69.81286856]
[1753678150637,0.03,193.25,193.22,4.81854542]
[1753678151708,0.03,193.25,193.21,26.0]
[1753678152027,0.03,193.25,193.17,4.81854542]
[1753678152028,4.81854542,193.23,193.17,4.81854542]
[1753678152213,0.65,193.23,193.19,26.0]
[1753678152407,0.03,193.25,193.16,38.0]
[1753678152408,0.03,193.25,193.21,26.0]
[1753678152728,0.03,193.25,193.21,30.81854542]
[1753678152729,5.20464424,193.25,193.21,30.81854542]
[1753678152912,5.20464424,193.25,193.22,26.0]
[1753678153099,0.65,193.24,193.22,26.0]
[1753678153301,0.65,193.24,193.18,5.86645612]
[1753678153302,0.65,193.23,193.2,26.0]
[1753678153523,0.65,193.22,193.18,4.81854542]
[1753678154202,0.65,193.22,193.17,30.81854542]
[1753678154400,0.65,193.21,193.17,30.81854542]
[1753678154907,10.64387533,193.23,193.17,31.50854542]
[1753678155303,4.81854542,193.2,193.17,26.0]
[1753678155527,0.65,193.19,193.14,42.83854542]
[1753678155728,0.65,193.19,193.14,43.52854542]
[1753678156106,0.65,193.19,193.14,69.52854542]
[1753678156639,0.65,193.19,193.14,74.01602696]
[1753678156807,4.81854542,193.2,193.15,0.69]
[1753678157009,0.65,193.2,193.15,0.69]
[1753678157210,5.46854542,193.2,193.15,0.69]
[1753678157820,4.81854542,193.18,193.14,26.0]
[1753678158020,5.46854542,193.17,193.11,43.54854542]
[1753678158220,5.46854542,193.16,193.12,26.0]
[1753678158431,18.11522791,193.21,193.11,0.06]
[1753678158432,5.46854542,193.15,193.11,0.06]
[1753678158724,10.64604327,193.15,193.11,0.06]
[1753678158932,9.99604327,193.15,193.11,0.06]
[1753678159247,0.65,193.14,193.12,26.0]
[1753678159630,9.99604327,193.15,193.12,26.0]
[1753678159838,10.64604327,193.15,193.12,26.0]
[1753678160733,10.64604327,193.15,193.11,0.06]
[1753678161527,0.65,193.14,193.11,0.06]
[1753678161726,5.46854542,193.14,193.11,0.06]
[1753678162136,0.65,193.14,193.11,0.06]
[1753678162340,5.17749785,193.15,193.11,0.06]
[1753678162529,5.82749785,193.15,193.11,0.06]
[1753678163567,9.99604327,193.15,193.11,0.06]
[1753678163742,4.81854542,193.13,193.11,0.06]
[1753678164455,5.46854542,193.13,193.11,0.06]
[1753678165042,10.64644484,193.13,193.11,0.06]
[1753678165258,5.82789942,193.13,193.11,0.06]
[1753678170952,0.72,193.12,193.11,0.06]
[1753678172962,5.89812758,193.12,193.11,0.06]
[1753678173257,5.17812758,193.12,193.11,0.06]
[1753678174154,5.89812758,193.12,193.11,0.06]
[1753678174958,5.17812758,193.12,193.11,0.06]
[1753678175160,10.716673,193.12,193.11,0.06]
[1753678176345,9.996673,193.12,193.11,0.06]
[1753678176544,43.01781177,193.14,193.11,0.06]
[1753678176743,43.01781177,193.14,193.11,0.71]
[1753678176950,43.01781177,193.14,193.12,0.65]
[1753678177348,37.84,193.14,193.13,0.65]
[1753678177853,26.0,193.2,193.13,5.46854542]
[1753678177854,5.17598343,193.2,193.13,5.46854542]
[1753678178048,42.93598343,193.2,193.16,4.81854542]
[1753678178255,42.93598343,193.2,193.17,0.65]
[1753678178845,42.93598343,193.2,193.15,0.65]
[1753678179054,0.72,193.19,193.15,5.46854542]
[1753678179261,0.72,193.19,193.14,4.81854542]
[1753678179459,0.72,193.19,193.14,5.46854542]
[1753678179846,5.53854542,193.19,193.14,0.65]
[1753678180367,5.53854542,193.18,193.12,4.81854542]
[1753678180553,4.81854542,193.17,193.12,30.81854542]
[1753678180745,5.53854542,193.17,193.12,31.46854542]
[1753678180940,37.76,193.2,193.12,30.81854542]
[1753678181147,38.48,193.2,193.15,4.81854542]
[1753678181372,37.76,193.2,193.15,4.81854542]
[1753678181670,37.76,193.2,193.16,0.65]
[1753678182166,5.17625135,193.19,193.16,0.65]
[1753678183566,5.17625135,193.19,193.17,0.65]
[1753678183777,0.03,193.21,193.18,4.81854542]
[1753678183959,5.20571554,193.21,193.19,0.65]
[1753678184145,0.03,193.21,193.19,0.65]
[1753678185260,0.03,193.21,193.2,0.65]
[1753678185458,0.03,193.21,193.2,5.46854542]
[1753678185848,0.03,193.21,193.2,0.65]
[1753678189475,0.03,193.21,193.2,5.46854542]
[1753678189963,0.03,193.21,193.18,26.65]
[1753678190151,0.03,193.21,193.19,0.65]
[1753678190350,0.03,193.21,193.19,5.46854542]
[1753678190659,0.03,193.21,193.2,0.65]
[1753678194669,0.03,193.21,193.2,5.46854542]
[1753678194877,0.03,193.21,193.2,0.65]
[1753678195085,0.03,193.21,193.2,5.46854542]
[1753678199384,0.03,193.21,193.18,157.1964614]
[1753678199385,0.03,193.21,193.19,4.81854542]
[1753678199570,0.03,193.21,193.2,0.68]
[1753678201179,0.03,193.21,193.2,5.49854542]
[1753678201573,0.03,193.21,193.2,0.68]
[1753678201772,0.03,193.21,193.2,5.49854542]
[1753678202080,0.03,193.21,193.2,10.95885199]
[1753678202285,0.03,193.21,193.2,5.49854542]
[1753678202475,0.03,193.21,193.2,31.49854542]
[1753678202788,0.03,193.21,193.2,37.47645033]
[1753678202971,0.03,193.21,193.2,31.78286856]
[1753678203175,0.03,193.21,193.2,36.95885199]
[1753678203967,0.03,193.21,193.2,74.65885199]
[1753678204165,0.03,193.21,193.2,64.38]
[1753678204469,0.03,193.21,193.2,69.19854542]
[1753678205266,0.03,193.21,193.2,31.49854542]
[1753678205693,0.03,193.21,193.2,26.0]
[1753678206098,0.03,193.21,193.19,37.68]
[1753678206267,0.03,193.21,193.19,42.49854542]
[1753678206470,0.03,193.21,193.19,43.17854542]
[1753678206782,0.03,193.21,193.2,0.68]
[1753678206985,0.03,193.21,193.2,5.49854542]
[1753678209077,0.03,193.21,193.2,27.74353596]
[1753678209283,0.03,193.25,193.23,26.0]
[1753678209472,0.03,193.25,193.24,42.80286856]
[1753678209672,0.03,193.25,193.24,43.48286856]
[1753678210781,0.03,193.25,193.24,38.66432314]
[1753678211177,0.03,193.25,193.24,43.48286856]